Cogmind - Beta 13 @@@ ROGUE MODE // 2024.05.01 @ 00:46:05 Player: void Result: Core destroyed Performance ------------- Evolutions (2) 1000 Regions Visited (5) 1000 Robots Destroyed (46) 230 Value Destroyed (1141) 1141 Prototype IDs (2) 40 Alien Tech Used (0) 0 Bonus (2) 2 TOTAL SCORE: 3413 Bonus ------- Follower Combat Kills 131 Friendly Fire -129 Cogmind --------- Core Integrity 0/550 Matter 173/300 Energy 27/100 System Corruption 0% Temperature Critical (593) Movement Core (350) Ox6 Location -8/Materials Parts ------- > --- POWER (1) -------- (None) > --- PROPULSION (2) --- (None) > --- UTILITY (5) ------ Large Storage Unit Improved Sensor Array > --- WEAPON (3) ------- (None) > --- INVENTORY (15) --- Improved Ion Engine Improved Ion Engine Cooled Ion Engine Light Nuclear Core Aluminum Leg Wheel Huge Storage Unit Visual Processing Unit Sensor Array Improved Terrain Scanner Shield Generator Particle Cannon Mining Laser Plasma Cutter Peak State ------------ > --- POWER ------------ Light Angular Momentum Engine > --- PROPULSION ------- Aluminum Leg Carbon-fiber Leg > --- UTILITY ---------- Large Storage Unit Sensor Array Improved Sensor Array Hardlight Generator > --- WEAPON ----------- Makeshift Laser Particle Cannon Slug Cannon > --- INVENTORY -------- Improved Ion Engine Improved Ion Engine Cooled Ion Engine Light Nuclear Core Aluminum Leg Wheel Huge Storage Unit Sensor Array Improved Terrain Scanner Shield Generator Assault Rifle Grenade Launcher Mining Laser Plasma Cutter [Rating: 29] Favorites ----------- Power Cooled Ion Engine Engine Cooled Ion Engine Propulsion Aluminum Leg Leg Aluminum Leg Flight Unit VTOL Module Utility Large Storage Unit Device Sensor Array Storage Large Storage Unit Protection Light Armor Plating Weapon Assault Rifle Energy Gun Medium Laser Energy Cannon Particle Cannon Ballistic Gun Assault Rifle Ballistic Cannon Slug Cannon Launcher Grenade Launcher Special Weapon Mining Laser Build | -11 -10 -10 -9 -9 -8 ------- Run | Yrd Mat Min Mat Min Mat Slots Evolved 4 | . . . 2 . 2 Power . | . . . . . . Propulsion . | . . . . . . Utility 3 | . . . 1 . 2 Weapon 1 | . . . 1 . . Parts Attached 52 | 7 6 7 17 1 14 Power 5 | 1 . 1 2 . 1 Engine 5 | 1 . 1 2 . 1 Core . | . . . . . . Reactor . | . . . . . . Propulsion 12 | 2 . 2 5 . 3 Treads . | . . . . . . Leg 9 | 2 . 2 2 . 3 Wheel . | . . . . . . Hover . | . . . . . . Flight 3 | . . . 3 . . Utility 12 | 2 2 1 3 . 4 Device 7 | 1 . 1 2 . 3 Storage 3 | 1 2 . . . . Processor . | . . . . . . Hackware . | . . . . . . Protection 2 | . . . 1 . 1 Artifact . | . . . . . . Weapon 23 | 2 4 3 7 1 6 Energy Gun 4 | . 1 . 1 . 2 Energy Cannon 1 | . . . . . 1 Ballistic Gun 10 | 2 1 2 4 . 1 Ballistic Cannon 2 | . . . . 1 1 Launcher 2 | . . . 1 . 1 Special Weapon 4 | . 2 1 1 . . Impact Weapon . | . . . . . . Slashing Weapon . | . . . . . . Piercing Weapon . | . . . . . . Special Melee Weapon . | . . . . . . Unidentified Prototypes 2 | . . . 2 . . Parts Lost 22 | . 1 4 1 . 16 Power 1 | . . . . . 1 Propulsion 6 | . . 2 . . 4 Utility 6 | . 1 1 . . 4 Weapon 9 | . . 1 1 . 7 Highest Loss Streak 9 | . 1 4 1 . 9 To Critical Strikes 1 | . . . . . 1 Average Slot Usage (%) 94 | . 99 92 99 100 81 Engine 11 | . 14 14 11 11 8 Leg 21 | . 28 27 21 22 13 Device 11 | . 7 6 10 11 18 Storage 12 | . 19 15 11 11 9 Protection 6 | . . . 10 11 6 Energy Gun 7 | . 9 14 11 . 2 Ballistic Gun 16 | . 14 13 20 22 11 Ballistic Cannon 4 | . . . . 10 11 Naked Turns . | . . . . . . Heaviest Build 54 | 15 54 34 38 42 49 Greatest Support 25 | 20 20 20 20 20 25 Greatest Overweight (x) 15 | . 2 9 1 2 15 Average Overweight (x) 1 | . . 1 1 1 2 Largest Inventory Capacity 20 | 8 20 15 15 15 15 Average Capacity 14 | 7 11 15 15 15 15 Most Carried 15 | 4 9 12 15 15 15 Average Carried 11 | 1 6 10 12 14 14 Final Capacity 15 | 8 15 15 15 15 15 Final Carried 15 | 3 9 11 15 15 14 Class Distribution -------------------- 61% | Tank 36% | Mutant Dominant Class ---------------- Mutant | -10/Materials Mutant | -10/Mines Tank | -9/Materials Tank | -9/Mines Tank | -8/Materials Resources | -11 -10 -10 -9 -9 -8 ----------- Run | Yrd Mat Min Mat Min Mat Matter Collected 1073 | 256 132 128 231 61 265 Remotely . | . . . . . . Salvage Created 1433 | 54 136 210 454 . 579 Parts 92 | 10 14 9 28 . 31 Haulers Intercepted . | . . . . . . Recyclers Shooed 2 | 1 . . . . 1 Parts Field Recycled . | . . . . . . Retrieved Matter . | . . . . . . Parts Self-Destructed . | . . . . . . Prevented . | . . . . . . Kills | -11 -10 -10 -9 -9 -8 ------- Run | Yrd Mat Min Mat Min Mat Combat Hostiles Destroyed 31 | . 5 5 11 . 10 Guns 20 | . 5 5 8 . 2 Cannons 8 | . . . . . 8 AOE 3 | . . . 3 . . Classes Destroyed 10 | 1 2 1 1 . 5 Worker 3 | . . . . . 3 Builder 3 | . . . . . 3 Tunneler 4 | 3 1 . . . . Mechanic 1 | . . . . . 1 Watcher 3 | . 2 . . . 1 Swarmer 10 | . 5 3 2 . . Grunt 14 | . . . 7 . 7 Brawler 1 | . . . . . 1 Sentry 5 | . . 2 2 . 1 Hunter 1 | . . . . . 1 Thug 1 | . . . 1 . . Best Kill Streak 7 | 2 4 3 6 . 7 Combat Bots Only 6 | . 3 3 6 . 6 Max Kills in Single Turn 2 | 1 2 1 2 . 1 Gunslinging 1 | . 1 . . . . Exploded 2 | . . . 2 . . Melee . | . . . . . . Uniques/NPCs Destroyed . | . . . . . . Combat | -11 -10 -10 -9 -9 -8 -------- Run | Yrd Mat Min Mat Min Mat Hostile Shots Fired 264 | . 20 56 42 . 146 Missed 64 | . 6 15 14 . 29 Damage Taken 2883 | . 106 472 388 . 1917 Core 726 | . 14 51 53 . 608 Absorbed by Shields 216 | . . . . . 216 Core Remaining (%) 86 | 100 . 74 . 86 . Volleys Fired 100 | 5 16 22 22 . 35 Largest 3 | 2 2 2 3 . 3 Hottest 166 | 40 100 100 115 . 166 Shots Fired 235 | 10 27 43 64 . 91 Gun 170 | 10 22 42 59 . 37 Cannon 52 | . . . . . 52 Launcher 7 | . . . 5 . 2 Special 6 | . 5 1 . . . Kinetic 134 | 10 11 21 37 . 55 Thermal 89 | . 16 22 20 . 31 Explosive 7 | . . . 5 . 2 Electromagnetic 5 | . . . 2 . 3 Robot Hit Streak 11 | 3 6 9 11 . 4 Robot Miss Streak 4 | 1 2 3 3 . 4 Penetration Max . | . . . . . . Secondary Targets 5 | . 2 2 1 . . Max Gunslinging Chain 1 | . 1 1 1 . . Shots Hit Robots 126 | 6 13 27 36 . 44 Core Hits 74 | 3 10 10 22 . 29 Critical Kills 4 | 1 . . . . 3 Critical Parts Destroyed 2 | . . . . . 2 Critical Strikes 12 | 1 1 2 1 . 7 Burn 5 | . 1 2 1 . 1 Destroy 6 | 1 . . . . 5 Blast 1 | . . . . . 1 Melee Attacks . | . . . . . . Impact . | . . . . . . Slashing . | . . . . . . Piercing . | . . . . . . Sneak Attacks . | . . . . . . Combat Hostiles . | . . . . . . Follow-up Attacks . | . . . . . . Damage Inflicted 2527 | 72 195 354 757 . 1149 Guns 1315 | 72 195 354 394 . 300 Cannons 760 | . . . . . 760 Explosions 452 | . . . 363 . 89 Melee . | . . . . . . Ramming . | . . . . . . Kinetic 1249 | 72 85 166 229 . 697 Thermal 763 | . 110 188 137 . 328 Explosive 452 | . . . 363 . 89 Electromagnetic 63 | . . . 28 . 35 Impact . | . . . . . . Slashing . | . . . . . . Piercing . | . . . . . . Highest Corruption . | . . . . . . Average Corruption . | . . . . . . Corruption Purged . | . . . . . . Corruption Blocked . | . . . . . . Overload Shots . | . . . . . . Overflow Damage 12 | . . . . . 12 Projectiles . | . . . . . . Explosions 12 | . . . . . 12 Melee . | . . . . . . Knockbacks 2 | . . . . . 2 Impact . | . . . . . . Kinetic 2 | . . . . . 2 Secondary . | . . . . . . Self-Inflicted Damage 91 | . . . 27 . 64 Shots 4 | . . . 2 . 2 Rammed . | . . . . . . Targets Rammed . | . . . . . . Kicked . | . . . . . . Crushed . | . . . . . . Highest Temperature 732 | . 100 154 231 . 732 Average Temperature 141 | . 31 49 86 . 275 Received Heat Transfer 1074 | . . 177 159 . 738 Effects 24 | . . . . . 24 Shutdowns 2 | . . . . . 2 Energy Bleed 4 | . . . . . 4 Matter Decay 1 | . . . . . 1 Short Circuit 1 | . . . . . 1 Damage (minor) 2 | . . . . . 2 Damage (major) 9 | . . . . . 9 Damage (core) 5 | . . . . . 5 Siege Activations . | . . . . . . Robots Corrupted . | . . . . . . Combat Hostiles . | . . . . . . Parts Fried . | . . . . . . Impact Corruptions . | . . . . . . Robots Melted . | . . . . . . Combat Hostiles . | . . . . . . Parts Melted 5 | . 3 . . . 2 Heat Transferred 2331 | . 407 703 481 . 740 Parts Sabotaged . | . . . . . . Parts Stolen . | . . . . . . Parts Stripped . | . . . . . . Power Chain Reactions . | . . . . . . Alert | -11 -10 -10 -9 -9 -8 ------- Run | Yrd Mat Min Mat Min Mat Peak Influence 370 | 15 196 207 370 74 195 Initial 76 | . 9 76 24 27 28 Average 112 | 5 94 118 229 30 53 Maximum Alert Level 1 | . . 1 1 . . Low Security (%) 75 | 100 100 75 26 100 100 Level 1 24 | . . 24 73 . . Level 2 . | . . . . . . Level 3 . | . . . . . . Level 4 . | . . . . . . Level 5 . | . . . . . . High Security . | . . . . . . Max Security . | . . . . . . Squads Dispatched 4 | . . 1 1 . 2 Investigation . | . . . . . . Extermination . | . . . . . . Reinforcement 2 | . . . . . 2 Assault 2 | . . 1 1 . . Garrison . | . . . . . . Intercept . | . . . . . . Searches Triggered . | . . . . . . Construction Impeded 1 | . . . . . 1 Haulers Reinforced . | . . . . . . Active Scanning Responses . | . . . . . . Cargo Convoy Interrupts . | . . . . . . Stealth | -11 -10 -10 -9 -9 -8 --------- Run | Yrd Mat Min Mat Min Mat Distress Signals . | . . . . . . Communications Jammed . | . . . . . . Distress Signals . | . . . . . . Times Spotted 56 | . 12 10 16 . 18 Peak Tracking Total 6 | . 3 4 6 . 5 Tactical Retreats 3 | . 1 . 2 . . Traps | -11 -10 -10 -9 -9 -8 ------- Run | Yrd Mat Min Mat Min Mat Traps Triggered 1 | . 1 . . . . Indirectly . | . . . . . . Trap Hack Attempts . | . . . . . . Triggered . | . . . . . . Disarmed . | . . . . . . Reprogrammed . | . . . . . . Reused . | . . . . . . Traps Extracted . | . . . . . . Installed . | . . . . . . Triggered . | . . . . . . Machines | -11 -10 -10 -9 -9 -8 ---------- Run | Yrd Mat Min Mat Min Mat Machines Disabled 1 | . . . 1 . . Max in Single Turn 1 | . . . 1 . . Machines Repaired . | . . . . . . Machines Dismantled 1 | . . . 1 . . Machines Sabotaged . | . . . . . . Overloaded Fab Kills . | . . . . . . Hacking | -11 -10 -10 -9 -9 -8 --------- Run | Yrd Mat Min Mat Min Mat Machines Accessed 7 | . 4 . 1 1 1 Terminals 7 | . 4 . 1 1 1 Fabricators . | . . . . . . Repair Stations . | . . . . . . Recycling Units . | . . . . . . Scanalyzers . | . . . . . . Garrison Access . | . . . . . . Total Hacks 16 | . 10 . 3 2 1 Successful 9 | . 5 . 1 2 1 Failed 7 | . 5 . 2 . . Catastrophic 1 | . 1 . . . . Database Lockouts . | . . . . . . Manual . | . . . . . . Terminals 16 | . 10 . 3 2 1 Fabricators . | . . . . . . Repair Stations . | . . . . . . Recycling Units . | . . . . . . Scanalyzers . | . . . . . . Garrison Access . | . . . . . . Terminal Hacks 9 | . 5 . 1 2 1 Record 3 | . 3 . . . . Branch Access Points 2 | . 1 . 1 . . Emergency Access Points 1 | . 1 . . . . Dispatch Records 2 | . . . . 1 1 Investigation Status 1 | . . . . 1 . Fabricator Hacks . | . . . . . . Repair Station Hacks . | . . . . . . Recycling Unit Hacks . | . . . . . . Scanalyzer . | . . . . . . Garrison Access Hacks . | . . . . . . Unauthorized Hacks . | . . . . . . Terminals . | . . . . . . Fabricators . | . . . . . . Repair Stations . | . . . . . . Recycling Units . | . . . . . . Scanalyzers . | . . . . . . Garrison Access . | . . . . . . Data Cores Recovered . | . . . . . . Used . | . . . . . . Hacking Detections 4 | . 3 . 1 . . Full Trace Events 2 | . 2 . . . . Feedback Events . | . . . . . . Feedback Blocked . | . . . . . . Robot Schematics Acquired . | . . . . . . Robots Built . | . . . . . . Authchips . | . . . . . . Time . | . . . . . . Total Robot Build Rating . | . . . . . . Part Schematics Acquired . | . . . . . . Parts Built . | . . . . . . Authchips . | . . . . . . Time . | . . . . . . Total Part Build Rating . | . . . . . . Parts Repaired . | . . . . . . Time . | . . . . . . Parts Recycled . | . . . . . . Recycled Matter . | . . . . . . Retrieved Matter . | . . . . . . Retrieved Components . | . . . . . . Parts Scanalyzed . | . . . . . . Part Schematics Acquired . | . . . . . . Parts Damaged . | . . . . . . Bothacking | -11 -10 -10 -9 -9 -8 ------------ Run | Yrd Mat Min Mat Min Mat Used RIF Installer . | . . . . . . Robots Hacked . | . . . . . . Non-combat . | . . . . . . Combat . | . . . . . . Robot Hacks Applied . | . . . . . . Relay Couplers Released . | . . . . . . Fabnet Peak Effective % . | . . . . . . Robots Rewired . | . . . . . . Allies Hacked . | . . . . . . Hacks Repelled . | . . . . . . Allies | -11 -10 -10 -9 -9 -8 -------- Run | Yrd Mat Min Mat Min Mat Total Allies 3 | . . 1 . 2 . Largest Group 2 | . . 1 1 2 1 Highest-Rated Group 42 | . . 31 31 42 31 Highest-Rated Ally 31 | . . 31 31 31 31 Total Orders . | . . . . . . Ally Attacks 28 | . . 7 5 14 2 Total Damage 408 | . . 150 43 195 20 Kills 7 | . . 4 . 3 . Allies Corrupted . | . . . . . . Allies Melted . | . . . . . . Intel | -11 -10 -10 -9 -9 -8 ------- Run | Yrd Mat Min Mat Min Mat Robot Analysis Total . | . . . . . . Derelict Logs Recovered 2 | . . 1 . 1 . Drone Launches . | . . . . . . Drone Recoveries . | . . . . . . Exploration | -11 -10 -10 -9 -9 -8 ------------- Run | Yrd Mat Min Mat Min Mat Turns Passed 3291 | 84 377 723 847 565 695 Spaces Moved 1246 | 49 211 322 297 217 150 Core 12 | 6 . 1 . . 5 Treads . | . . . . . . Legs 1234 | 43 211 321 297 217 145 Wheels . | . . . . . . Hover . | . . . . . . Flight . | . . . . . . Fastest Speed 50 | 50 120 190 190 190 190 Average Speed 204 | 111 144 191 190 253 305 Slowest Speed 800 | 120 260 500 190 260 800 Overloaded Moves . | . . . . . . Propulsion Burnouts . | . . . . . . Robots Hopped . | . . . . . . Cave-ins Triggered . | . . . . . . Exploration Rate (%) 39 | 3 55 66 32 61 17 Regions Visited 5 Branch Regions 2 Pre-discovered Areas . | . . . . . . Known Exits Taken 2 | . 1 . 1 . . Unknown Exits Taken 3 | 1 . 1 . 1 . Scrap Searched . | . . . . . . Spaces Dug 12 | . 4 1 . . 7 Terrain Destroyed 63 | . 5 1 24 . 33 Melee . | . . . . . . Projectile 20 | . 5 1 . . 14 AOE 43 | . . . 24 . 19 Terrain Rammed . | . . . . . . Walls Destroyed . | . . . . . . Machines Disabled . | . . . . . . Actions | -11 -10 -10 -9 -9 -8 --------- Run | Yrd Mat Min Mat Min Mat Total 1732 | 65 245 382 495 233 312 Wait 278 | 1 2 27 127 12 109 Move 1241 | 48 210 321 296 216 150 Hop . | . . . . . . Pick Up 33 | 4 9 4 11 2 3 Fast Attach 14 | 6 2 2 . . 4 Attach 13 | 1 1 2 4 . 5 Detach . | . . . . . . Swap 25 | . 3 3 13 1 5 Drop 10 | . 2 1 4 2 1 Fire 100 | 5 16 22 22 . 35 Melee . | . . . . . . Ram . | . . . . . . Kick . | . . . . . . Crush . | . . . . . . Escape Stasis . | . . . . . . Rewire . | . . . . . . Trap . | . . . . . . Miscellaneous 18 | . . . 18 . . Route ------- -11/Scrapyard -10/Materials (discovered 4 exits: *Mat x2 / *Min x2) -10/Mines (discovered 2 exits: *Mat x2) -9/Materials -9/Mines -8/Materials (discovered 1 exit: Sto) History --------- Turn | Location | Event 29 | -11/Scrapyard | Discovered new exit (range 14) 85 | -11/Scrapyard | Entered Materials 142 | -10/Materials | Discovered new exit (range 8) 217 | -10/Materials | Identified exit to Mines 328 | -10/Materials | Build established: Mutant 381 | -10/Materials | Discovered new exit (range 16) 462 | -10/Materials | Entered Mines 711 | -10/Mines | Joined a pair of Derelicts in attacking an 0b10 outpost 836 | -10/Mines | Met a Derelict testing a Signal Generator 850 | -10/Mines | Found Signal Generator 916 | -10/Mines | Lost 4 parts (2n1u1w) 1067 | -10/Mines | Discovered new exit (range 9) 1128 | -10/Mines | Discovered new exit (range 11) 1185 | -10/Mines | Entered Materials 1185 | -9/Materials | Accompanied by 1 ally 1185 | -9/Materials | Evolved 2 slots: Utility x1, Weapon x1 1331 | -9/Materials | Identified exit to Mines 1481 | -9/Materials | Build established: Tank 2032 | -9/Materials | Entered Mines 2065 | -9/Mines | A weapon hastily lodged in a ceiling crevice suddenly fell to the ground 2119 | -9/Mines | Learned Materials emergency access door positions 2223 | -9/Mines | Found a damaged Exp. Sensor Array with a note attached 2419 | -9/Mines | Assembled infested the area 2445 | -9/Mines | Met 8R-AWN 2574 | -9/Mines | Discovered new exit (range 8) 2597 | -9/Mines | Entered Materials 2597 | -8/Materials | Accompanied by 1 ally 2597 | -8/Materials | Evolved 2 slots: Utility x2 2598 | -8/Materials | Identified exit to Storage 2602 | -8/Materials | Led the pair of lost Derelicts to an unsafe place 3182 | -8/Materials | Lost 6 parts (1n2u3w) 3266 | -8/Materials | Core integrity fell below 50% 3282 | -8/Materials | Core integrity fell below 20% 3293 | -8/Materials | Core destroyed Last Messages --------------- K-01 Serf collects debris. Overheating: Energy bleed (-5). U-05 Engineer builds a Wall. Slug Cannon destroyed. Overheating: Energy bleed (-7). K-01 Serf collects debris. R-06 Scavenger collects Hvy. Laser. K-01 Serf destroyed. ALERT: Construction progress impeded, dispatching reinforcements to local area. Overheating: Energy bleed (-2). U-05 Engineer destroyed. Grenade Launcher destroyed. Destroyed Grenade Launcher. Critical hit (Burn: +37). Overheating: Matter decay (-54). R-06 Scavenger collects Aluminum Leg. Overheating: Lrg. Storage Unit damaged (-57). The unstable cave ceiling collapses. Overheating: Core damaged (-71). Map ----- +----------------------------------------------------+ | ???????????????????????????????????????????????# ? | | ???????????????????????????????????????????????# | | ???????????????????????????????????????????????? | | ????????????????????????????????????????###+###### | | ????????????????????????????????????? | | ????????????????????????????????????? | | ????????????????????????????????????? | | ????????????????????????????????????????###+###### | | ???????????????????????????????????????????????# | | ???????????????????????????????????????????????# " | | ????????????????????????? ???????????????????# " | | ????????????????????????? ??????????????????# " | | ????????????????????????? #??+???????????????# " | | ????????????????????????? #???????????+??????# | | ????????????????????????? #??????????????????### | | ????????????????????????# +????????????????????? | | ????????????????????????# #???????????????###### | | ????????????????????????#u #???????????????# | | ????????????????????????# #???????????????# """ | | ????????????????????????# #???????????????# """ | | ????????????????????????# #???????????????# """ | | ????????????????????????# ##??????????????# """ | | ??????????????????????### ##??????????????# """ | | ??????????????????????# #??????????????# """ | | ??????????????????????# m #??????????????# """ | | ??????????????????????# @!*#???????????????# | | ??????????????????"???# % #?????""???????###### | | ????????????#?????""??# % * #?????""?????????# | | ????????????? ????""### = #????? ?????????# | | ??????????????? ??? # ## %= #???####+###?????# | | ??????????#######/####### ####### % #?????# | | ??????????# %!? %% !g % #?????# | | ??????????# |%! %!% %r %! #?????# | | ??????????# = =%=/%% #?????#### | | ??????????# ##########+########## #????????? | | ???????????????????????#!** #??# #########?? | | ???????????????????????#[ #??# # ! #?? | | ???????????????????????# #??# # """ #?? | | ???????????????????????# ! #??# + ! """ #?? | | ???????????????????????# !%=#??# # """ ### | | ???????????????????????# !/[=#### # + | | ???????????????????????# !/ + ########### | | ???????????????????????# // #####+#####??????? | | ???????????????????????# # #??????? | | ???????????????????????########## ! = #??????? | | ????????????????????????????????# #??????? | | ????????????????????????????????# """ """ #??????? | | ????????????????????????????????# """ """ #??????? | | ????????????????????????????????# """ """ #??????? | | ????????????????????????????????# #??????? | +----------------------------------------------------+ Best States ------------- Heat Dissipation 41 Energy Generation 18 Energy Capacity 280 Matter Stores 300 Matter Capacity 300 Sight Range 16 Robot Scan Range 15 Terrain Scan Density 10 Armor Coverage 150 Evasion (%) 55 Item Schematics ----------------- None Robot Schematics ------------------ None Fabricated ------------ Nothing Alien Tech Used ----------------- None Achievements -------------- None Challenges ------------ None Game ------ Seed RecoilCarbideLoader Manual? 0 Play Time 00:36:43 Cumulative 14.2 hours Start 2024.05.01 @ 00:09:34 End 2024.05.01 @ 00:46:05 Sessions 1 Manual Loads 0 Difficulty Rogue Special Mode None Game No. 28 Rogue 20 Adventurer 8 Explorer 0 Win Type - Total 0 Types 0/0/0/0/0/0/0/0/0 Lore% 4 Gallery% 20 Achievement% 15 Wizard Run 0 Options --------- Layout 0 ASCII 0 Keyboard 0 Movement Mouse Keybinds 0 Fullscreen 2 Font 18/SmallcapsGlow Map View 38x25 Zoom Use 98% Tactical HUD 0 Map Filters NONE Filters NONE Steam 1 RUN: b43609a5-7592-4560-a0a7-a2a25d6bf6dc